[Event "Swedish Chess Championship 2021: Mastarklassen-Elit"]
[Site "Scandic Helsingborg Nord, Florettgatan 41, Helsingborg, Sweden"]
[Date "2021.07.07"]
[Round "5.3"]
[White "Bellon Lopez, Juan Manuel"]
[Black "Sorensen, Hampus"]
[Result "1-0"]
[TimeControl "90 minutes for 40 moves + 30 minutes for the rest of the game + 30 seconds per move from move one."]
[WhiteTitle "GM"]
[BlackTitle "FM"]
[WhiteFideId "2200031"]
[BlackFideId "8703884"]
[WhiteElo "2327"]
[BlackElo "2392"]

1. d4 {[%clk 01:30:58]} {[%emt 00:00:01]} d5 {[%clk 01:30:50]} {[%emt
00:00:10]} 2. Bf4 {[%clk 01:30:39]} {[%emt 00:00:50]} c5 {[%clk 01:30:53]}
{[%emt 00:00:27]} 3. e3 {[%clk 01:30:58]} {[%emt 00:00:11]} cxd4 {[%clk
01:31:09]} {[%emt 00:00:14]} 4. exd4 {[%clk 01:31:19]} {[%emt 00:00:08]} Nc6
{[%clk 01:31:20]} {[%emt 00:00:19]} 5. c3 {[%clk 01:31:24]} {[%emt 00:00:25]}
f6 {[%clk 01:31:15]} {[%emt 00:00:35]} 6. Nf3 {[%clk 01:27:49]} {[%emt
00:04:04]} g5 {[%clk 01:30:39]} {[%emt 00:01:06]} 7. Be3 {[%clk 01:20:48]}
{[%emt 00:07:32]} Bf5 {[%clk 01:29:03]} {[%emt 00:02:06]} 8. Bd3 {[%clk
01:20:58]} {[%emt 00:00:20]} Bg6 {[%clk 01:16:19]} {[%emt 00:13:14]} 9. Bxg6+
{[%clk 01:13:48]} {[%emt 00:07:39]} hxg6 {[%clk 01:16:47]} {[%emt 00:00:02]} 10.
Qd3 {[%clk 01:13:21]} {[%emt 00:00:57]} Kf7 {[%clk 01:15:18]} {[%emt 00:01:59]}
11. h4 {[%clk 00:50:47]} {[%emt 00:23:04]} e6 {[%clk 01:08:39]} {[%emt
00:07:09]} 12. g4 {[%clk 00:48:59]} {[%emt 00:02:17]} Bd6 {[%clk 01:02:39]}
{[%emt 00:06:30]} 13. Nbd2 {[%clk 00:48:43]} {[%emt 00:00:46]} gxh4 {[%clk
00:58:30]} {[%emt 00:04:38]} 14. Rxh4 {[%clk 00:45:41]} {[%emt 00:03:32]} Rxh4
{[%clk 00:57:45]} {[%emt 00:01:15]} 15. Nxh4 {[%clk 00:46:07]} {[%emt
00:00:05]} Nge7 {[%clk 00:57:16]} {[%emt 00:00:59]} 16. O-O-O {[%clk 00:39:09]}
{[%emt 00:07:28]} Qc7 {[%clk 00:55:19]} {[%emt 00:02:26]} 17. Kb1 {[%clk
00:37:28]} {[%emt 00:02:11]} Rh8 {[%clk 00:53:15]} {[%emt 00:02:35]} 18. Ndf3
{[%clk 00:37:28]} {[%emt 00:00:30]} Na5 {[%clk 00:50:06]} {[%emt 00:03:39]} 19.
Re1 {[%clk 00:36:09]} {[%emt 00:01:48]} Qc4 {[%clk 00:40:51]} {[%emt 00:09:46]}
20. Qc2 {[%clk 00:33:25]} {[%emt 00:03:14]} b5 {[%clk 00:38:50]} {[%emt
00:02:32]} 21. Bd2 {[%clk 00:32:15]} {[%emt 00:01:40]} Qc6 {[%clk 00:28:18]}
{[%emt 00:11:03]} 22. Qd3 {[%clk 00:31:27]} {[%emt 00:01:18]} Nc4 {[%clk
00:25:20]} {[%emt 00:03:28]} 23. Bc1 {[%clk 00:31:15]} {[%emt 00:00:41]} b4
{[%clk 00:22:12]} {[%emt 00:03:39]} 24. Qe2 {[%clk 00:25:42]} {[%emt 00:06:02]}
Qd7 {[%clk 00:20:57]} {[%emt 00:01:46]} 25. b3 {[%clk 00:25:32]} {[%emt
00:00:40]} Na3+ {[%clk 00:17:48]} {[%emt 00:03:38]} 26. Bxa3 {[%clk 00:25:47]}
{[%emt 00:00:16]} bxa3 {[%clk 00:18:17]} {[%emt 00:00:02]} 27. g5 {[%clk
00:19:18]} {[%emt 00:06:58]} f5 {[%clk 00:16:57]} {[%emt 00:01:50]} 28. Ng2
{[%clk 00:17:52]} {[%emt 00:01:56]} Nc6 {[%clk 00:15:48]} {[%emt 00:01:40]} 29.
Qe3 {[%clk 00:15:49]} {[%emt 00:02:33]} Re8 {[%clk 00:13:06]} {[%emt 00:03:13]}
30. Rh1 {[%clk 00:14:10]} {[%emt 00:02:08]} Kg8 {[%clk 00:05:46]} {[%emt
00:07:50]} 31. Rh6 {[%clk 00:11:45]} {[%emt 00:02:56]} Bf8 {[%clk 00:06:09]}
{[%emt 00:00:07]} 32. Rxg6+ {[%clk 00:10:49]} {[%emt 00:01:25]} Bg7 {[%clk
00:06:28]} {[%emt 00:00:11]} 33. Nf4 {[%clk 00:10:22]} {[%emt 00:00:58]} Kf7
{[%clk 00:06:17]} {[%emt 00:00:40]} 34. Rxg7+ {[%clk 00:09:03]} {[%emt
00:01:50]} Kxg7 {[%clk 00:06:42]} {[%emt 00:00:05]} 35. Nh5+ {[%clk 00:09:29]}
{[%emt 00:00:04]} Kf7 {[%clk 00:04:20]} {[%emt 00:02:51]} 36. g6+ {[%clk
00:05:31]} {[%emt 00:04:29]} Ke7 {[%clk 00:04:24]} {[%emt 00:00:26]} 37. Qg5+
{[%clk 00:05:49]} {[%emt 00:00:12]} Kd6 {[%clk 00:04:37]} {[%emt 00:00:17]} 38.
Nf6 {[%clk 00:06:07]} {[%emt 00:00:12]} Qd8 {[%clk 00:04:27]} {[%emt 00:00:40]}
39. Nxe8+ {[%clk 00:02:11]} {[%emt 00:04:26]} Qxe8 {[%clk 00:04:53]} {[%emt
00:00:04]} 40. Ne5 {[%clk 00:00:50]} {[%emt 00:01:51]} Ne7 {[%clk 00:02:03]}
{[%emt 00:03:20]} 41. Qf6 {[%clk 00:28:00]} {[%emt 00:03:20]} Qb5 {[%clk
00:29:13]} {[%emt 00:03:20]} 42. c4 {[%clk 00:26:08]} {[%emt 00:02:22]} dxc4
{[%clk 00:29:28]} {[%emt 00:00:15]} 43. Nxc4+ {[%clk 00:26:31]} {[%emt
00:00:06]} Kd7 {[%clk 00:29:51]} {[%emt 00:00:07]} 44. g7 {[%clk 00:23:49]}
{[%emt 00:03:13]} Qd5 {[%clk 00:28:13]} {[%emt 00:02:08]} 45. Qe5 {[%clk
00:22:52]} {[%emt 00:01:27]} Qh1+ {[%clk 00:26:06]} {[%emt 00:02:37]} 46. Kc2
{[%clk 00:23:16]} {[%emt 00:00:06]} Qa1 {[%clk 00:25:30]} {[%emt 00:01:06]} 47.
Qd6+ {[%clk 00:22:57]} {[%emt 00:00:49]} Ke8 {[%clk 00:25:53]} {[%emt
00:00:07]} 48. Qb8+ {[%clk 00:23:05]} {[%emt 00:00:22]} Kf7 {[%clk 00:26:15]}
{[%emt 00:00:08]} 49. Qf8+ {[%clk 00:23:21]} {[%emt 00:00:14]} Kg6 {[%clk
00:26:41]} {[%emt 00:00:05]} 50. Ne5+ {[%clk 00:22:07]} {[%emt 00:01:43]} Kh5
{[%clk 00:26:44]} {[%emt 00:00:27]} 51. Qh8+ {[%clk 00:20:47]} {[%emt
00:01:50]} Kg5 {[%clk 00:27:05]} {[%emt 00:00:08]} 52. g8=Q+ {[%clk 00:14:53]}
{[%emt 00:06:24]} Nxg8 {[%clk 00:27:21]} {[%emt 00:00:14]} 53. Qxg8+ {[%clk
00:15:02]} {[%emt 00:00:22]} Kf4 {[%clk 00:27:47]} {[%emt 00:00:04]} 54. Nd3+
{[%clk 00:13:23]} {[%emt 00:02:08]} Ke4 {[%clk 00:25:23]} {[%emt 00:02:54]} 55.
Qg2+ {[%clk 00:13:16]} {[%emt 00:00:37]} Kxd4 {[%clk 00:25:36]} {[%emt
00:00:17]} 56. Qg7+ {[%clk 00:13:40]} {[%emt 00:00:06]} Kd5 {[%emt 00:00:28]}
1-0

[Event "Swedish Chess Championship 2021: Mastarklassen-Elit"]
[Site "Scandic Helsingborg Nord, Florettgatan 41, Helsingborg, Sweden"]
[Date "2021.07.07"]
[Round "5.4"]
[White "Nikolic, Vladan"]
[Black "Lindberg, Bengt"]
[Result "1-0"]
[TimeControl "90 minutes for 40 moves + 30 minutes for the rest of the game + 30 seconds per move from move one."]
[BlackTitle "IM"]
[WhiteFideId "1710702"]
[BlackFideId "1700359"]
[WhiteElo "2222"]
[BlackElo "2392"]

1. d4 {[%clk 01:30:58]} {[%emt 00:00:02]} Nf6 {[%clk 01:30:44]} {[%emt
00:00:16]} 2. Bf4 {[%clk 01:31:20]} {[%emt 00:00:08]} c6 {[%clk 01:29:22]}
{[%emt 00:01:52]} 3. c4 {[%clk 01:27:13]} {[%emt 00:04:37]} Qb6 {[%clk
01:20:26]} {[%emt 00:09:25]} 4. Qd2 {[%clk 01:13:28]} {[%emt 00:14:17]} d5
{[%clk 01:13:17]} {[%emt 00:07:38]} 5. Nc3 {[%clk 01:13:00]} {[%emt 00:00:58]}
Bf5 {[%clk 01:11:26]} {[%emt 00:02:20]} 6. cxd5 {[%clk 01:04:08]} {[%emt
00:09:23]} Nxd5 {[%clk 00:51:29]} {[%emt 00:20:26]} 7. Bg3 {[%clk 00:59:43]}
{[%emt 00:04:56]} e6 {[%clk 00:49:28]} {[%emt 00:02:29]} 8. f3 {[%clk
00:53:49]} {[%emt 00:06:25]} Bg6 {[%clk 00:44:07]} {[%emt 00:05:51]} 9. e4
{[%clk 00:52:56]} {[%emt 00:01:23]} Nxc3 {[%clk 00:43:53]} {[%emt 00:00:44]} 10.
bxc3 {[%clk 00:53:20]} {[%emt 00:00:06]} Qd8 {[%clk 00:36:13]} {[%emt
00:08:10]} 11. Rb1 {[%clk 00:50:42]} {[%emt 00:03:09]} b6 {[%clk 00:36:29]}
{[%emt 00:00:13]} 12. h4 {[%clk 00:43:50]} {[%emt 00:07:22]} h6 {[%clk
00:36:29]} {[%emt 00:00:29]} 13. Rd1 {[%clk 00:40:28]} {[%emt 00:03:53]} Bd6
{[%clk 00:36:34]} {[%emt 00:00:25]} 14. e5 {[%clk 00:39:45]} {[%emt 00:01:14]}
Be7 {[%clk 00:36:26]} {[%emt 00:00:37]} 15. Ne2 {[%clk 00:39:27]} {[%emt
00:00:48]} Nd7 {[%clk 00:30:13]} {[%emt 00:06:43]} 16. Nf4 {[%clk 00:38:25]}
{[%emt 00:01:33]} Bf5 {[%clk 00:30:36]} {[%emt 00:00:07]} 17. Bc4 {[%clk
00:36:32]} {[%emt 00:02:24]} b5 {[%clk 00:30:33]} {[%emt 00:00:34]} 18. Bb3
{[%clk 00:36:07]} {[%emt 00:00:55]} Nb6 {[%clk 00:30:51]} {[%emt 00:00:10]} 19.
Bf2 {[%clk 00:35:02]} {[%emt 00:01:35]} a5 {[%clk 00:27:43]} {[%emt 00:03:39]}
20. g4 {[%clk 00:33:17]} {[%emt 00:02:15]} Bh7 {[%clk 00:28:07]} {[%emt
00:00:06]} 21. Bxe6 {[%clk 00:30:03]} {[%emt 00:03:43]} fxe6 {[%clk 00:28:05]}
{[%emt 00:00:32]} 22. Nxe6 {[%clk 00:30:28]} {[%emt 00:00:06]} Qc8 {[%clk
00:27:51]} {[%emt 00:00:43]} 23. Nxg7+ {[%clk 00:30:13]} {[%emt 00:00:45]} Kf7
{[%clk 00:28:05]} {[%emt 00:00:15]} 24. Nh5 {[%clk 00:26:41]} {[%emt 00:04:03]}
Qf8 {[%clk 00:22:00]} {[%emt 00:06:34]} 25. f4 {[%clk 00:21:03]} {[%emt
00:06:10]} Be4 {[%clk 00:17:36]} {[%emt 00:04:54]} 26. Rh3 {[%clk 00:21:03]}
{[%emt 00:00:30]} Qd8 {[%clk 00:13:56]} {[%emt 00:04:10]} 27. f5 {[%clk
00:15:23]} {[%emt 00:06:11]} Qd5 {[%clk 00:12:04]} {[%emt 00:02:21]} 28. Qf4
{[%clk 00:07:43]} {[%emt 00:08:09]} Nc4 {[%clk 00:08:14]} {[%emt 00:04:20]} 29.
g5 {[%clk 00:04:02]} {[%emt 00:04:12]} hxg5 {[%clk 00:05:37]} {[%emt 00:03:06]}
30. hxg5 {[%clk 00:04:21]} {[%emt 00:00:11]} Rag8 {[%clk 00:02:09]} {[%emt
00:03:58]} 31. g6+ {[%clk 00:02:23]} {[%emt 00:02:29]} Ke8 {[%clk 00:02:01]}
{[%emt 00:00:37]} 32. g7 {[%clk 00:01:42]} {[%emt 00:01:11]} Rxh5 {[%clk
00:01:00]} {[%emt 00:01:32]} 33. Rxh5 {[%clk 00:02:06]} {[%emt 00:00:07]} Rxg7
{[%clk 00:01:17]} {[%emt 00:00:12]} 34. Rh8+ {[%clk 00:02:10]} {[%emt
00:00:25]} Bf8 {[%clk 00:00:55]} {[%emt 00:00:52]} 35. Qh6 {[%clk 00:01:31]}
{[%emt 00:01:10]} Rf7 {[%clk 00:30:30]} {[%emt 00:00:55]} 1-0

[Event "Swedish Chess Championship 2021: Mastarklassen-Elit"]
[Site "Scandic Helsingborg Nord, Florettgatan 41, Helsingborg, Sweden"]
[Date "2021.07.07"]
[Round "5.5"]
[White "Furhoff, Johan"]
[Black "Ernst, Thomas"]
[Result "1-0"]
[TimeControl "90 minutes for 40 moves + 30 minutes for the rest of the game + 30 seconds per move from move one."]
[WhiteTitle "IM"]
[BlackTitle "GM"]
[WhiteFideId "1701797"]
[BlackFideId "1700065"]
[WhiteElo "2324"]
[BlackElo "2310"]

1. e4 {[%clk 01:30:58]} e5 {[%clk 01:30:50]} {[%emt 00:00:10]} 2. f4 {[%clk
01:31:24]} {[%emt 00:00:05]} exf4 {[%clk 01:31:11]} {[%emt 00:00:10]} 3. Nf3
{[%clk 01:31:49]} {[%emt 00:00:05]} Be7 {[%clk 01:31:22]} {[%emt 00:00:19]} 4.
Bc4 {[%clk 01:31:44]} {[%emt 00:00:34]} Nf6 {[%clk 01:27:27]} {[%emt 00:04:25]}
5. e5 {[%clk 01:32:09]} {[%emt 00:00:06]} Ng4 {[%clk 01:27:40]} {[%emt
00:00:16]} 6. O-O {[%clk 01:31:34]} {[%emt 00:01:06]} O-O {[%clk 01:26:17]}
{[%emt 00:01:53]} 7. h3 {[%clk 01:25:50]} {[%emt 00:06:14]} Nh6 {[%clk
01:26:32]} {[%emt 00:00:15]} 8. d4 {[%clk 01:25:09]} {[%emt 00:01:11]} d5
{[%clk 01:26:02]} {[%emt 00:00:59]} 9. Bb3 {[%clk 01:19:11]} {[%emt 00:06:30]}
g5 {[%clk 01:22:16]} {[%emt 00:04:15]} 10. Nc3 {[%clk 01:18:41]} {[%emt
00:01:00]} c6 {[%clk 01:22:29]} {[%emt 00:00:17]} 11. h4 {[%clk 01:16:33]}
{[%emt 00:02:38]} gxh4 {[%clk 01:22:09]} {[%emt 00:00:50]} 12. Bxf4 {[%clk
01:08:40]} {[%emt 00:08:23]} Nf5 {[%clk 01:22:25]} {[%emt 00:00:14]} 13. Ne2
{[%clk 01:01:20]} {[%emt 00:07:51]} Na6 {[%clk 01:12:42]} {[%emt 00:10:12]} 14.
c3 {[%clk 01:00:01]} {[%emt 00:01:49]} Nc7 {[%clk 01:12:34]} {[%emt 00:00:38]}
15. Bc2 {[%clk 00:58:58]} {[%emt 00:01:34]} f6 {[%clk 01:02:59]} {[%emt
00:10:05]} 16. Qd3 {[%clk 00:53:35]} {[%emt 00:05:52]} Rf7 {[%clk 00:59:54]}
{[%emt 00:03:33]} 17. exf6 {[%clk 00:44:47]} {[%emt 00:09:20]} Bxf6 {[%clk
00:59:46]} {[%emt 00:00:38]} 18. Ne5 {[%clk 00:44:04]} {[%emt 00:01:13]} Rg7
{[%clk 00:57:34]} {[%emt 00:02:41]} 19. Rf3 {[%clk 00:38:17]} {[%emt 00:06:17]}
Ne8 {[%clk 00:51:28]} {[%emt 00:06:36]} 20. Raf1 {[%clk 00:25:11]} {[%emt
00:13:37]} Ned6 {[%clk 00:51:39]} {[%emt 00:00:19]} 21. Bh2 {[%clk 00:15:01]}
{[%emt 00:10:40]} Rg5 {[%clk 00:51:19]} {[%emt 00:00:48]} 22. Nf4 {[%clk
00:12:51]} {[%emt 00:02:41]} Qe7 {[%clk 00:49:14]} {[%emt 00:02:35]} 23. Nh3
{[%clk 00:12:51]} {[%emt 00:00:31]} Rh5 {[%clk 00:46:13]} {[%emt 00:03:30]} 24.
Ng4 {[%clk 00:12:14]} {[%emt 00:01:08]} Bg7 {[%clk 00:46:24]} {[%emt 00:00:18]}
25. Bxd6 {[%clk 00:09:54]} {[%emt 00:02:51]} Nxd6 {[%clk 00:44:13]} {[%emt
00:02:42]} 26. Nf6+ {[%clk 00:08:25]} {[%emt 00:01:59]} Bxf6 {[%clk 00:44:23]}
{[%emt 00:00:19]} 27. Rxf6 {[%clk 00:08:46]} {[%emt 00:00:09]} Ne4 {[%clk
00:37:58]} {[%emt 00:06:53]} 28. Qe2 {[%clk 00:07:05]} {[%emt 00:02:11]} Bxh3
{[%clk 00:36:41]} {[%emt 00:01:47]} 29. Bxe4 {[%clk 00:03:39]} {[%emt
00:03:56]} Qg7 {[%clk 00:37:04]} {[%emt 00:00:07]} 30. Qxh5 {[%clk 00:03:35]}
{[%emt 00:00:35]} dxe4 {[%clk 00:37:26]} {[%emt 00:00:07]} 31. Qf7+ {[%clk
00:03:55]} {[%emt 00:00:09]} Qxf7 {[%clk 00:37:41]} {[%emt 00:00:15]} 32. Rxf7
{[%clk 00:04:19]} {[%emt 00:00:06]} Be6 {[%emt 00:00:15]} 33. Re7 Bxa2 34. Rf4
Bd5 {[%clk 00:37:57]} 35. Rg4+ 1-0

[Event "Swedish Chess Championship 2021: Mastarklassen-Elit"]
[Site "Scandic Helsingborg Nord, Florettgatan 41, Helsingborg, Sweden"]
[Date "2021.07.09"]
[Round "7.1"]
[White "Bellon Lopez, Juan Manuel"]
[Black "Nikolic, Vladan"]
[Result "1/2-1/2"]
[TimeControl "90 minutes for 40 moves + 30 minutes for the rest of the game + 30 seconds per move from move one."]
[WhiteTitle "GM"]
[WhiteFideId "2200031"]
[BlackFideId "1710702"]
[WhiteElo "2327"]
[BlackElo "2222"]

1. d4 {[%clk 01:30:59]} {[%emt 00:00:01]} Nf6 {[%clk 01:30:41]} {[%emt
00:00:18]} 2. Bf4 {[%clk 01:30:49]} {[%emt 00:00:40]} d5 {[%clk 01:31:02]}
{[%emt 00:00:09]} 3. e3 {[%clk 01:31:10]} {[%emt 00:00:10]} c5 {[%clk
01:31:26]} {[%emt 00:00:05]} 4. c3 {[%clk 01:31:35]} {[%emt 00:00:05]} Nc6
{[%clk 01:31:51]} {[%emt 00:00:05]} 5. Nd2 {[%clk 01:25:26]} {[%emt 00:06:39]}
e6 {[%clk 01:32:12]} {[%emt 00:00:09]} 6. Ngf3 {[%clk 01:25:48]} {[%emt
00:00:07]} Bd6 {[%clk 01:32:34]} {[%emt 00:00:08]} 7. Ne5 {[%clk 01:26:14]}
{[%emt 00:00:05]} Qc7 {[%clk 01:30:44]} {[%emt 00:02:19]} 8. Ndf3 {[%clk
01:25:13]} {[%emt 00:01:32]} O-O {[%clk 01:26:55]} {[%emt 00:04:18]} 9. Bd3
{[%clk 01:24:53]} {[%emt 00:00:49]} Ne4 {[%clk 01:25:39]} {[%emt 00:01:46]} 10.
Bg3 {[%clk 01:14:49]} {[%emt 00:10:35]} b6 {[%clk 01:09:06]} {[%emt 00:17:03]}
11. Nc4 {[%clk 01:07:55]} {[%emt 00:07:24]} f5 {[%clk 00:44:40]} {[%emt
00:24:56]} 12. Nxd6 {[%clk 00:58:59]} {[%emt 00:09:25]} Nxd6 {[%clk 00:43:54]}
{[%emt 00:01:17]} 13. Ne5 {[%clk 00:54:50]} {[%emt 00:04:40]} a5 {[%clk
00:36:43]} {[%emt 00:07:41]} 14. O-O {[%clk 00:51:12]} {[%emt 00:04:07]} Nxe5
{[%clk 00:34:45]} {[%emt 00:02:28]} 15. Bxe5 {[%clk 00:51:16]} {[%emt
00:00:26]} Ba6 {[%clk 00:34:53]} {[%emt 00:00:22]} 16. Bxa6 {[%clk 00:35:46]}
{[%emt 00:16:00]} Rxa6 {[%clk 00:35:18]} {[%emt 00:00:05]} 17. c4 {[%clk
00:35:40]} {[%emt 00:00:36]} dxc4 {[%clk 00:30:10]} {[%emt 00:05:38]} 18. dxc5
{[%clk 00:35:22]} {[%emt 00:00:48]} bxc5 {[%clk 00:30:34]} {[%emt 00:00:06]} 19.
Qc2 {[%clk 00:34:19]} {[%emt 00:01:33]} Rb8 {[%clk 00:27:56]} {[%emt 00:03:07]}
20. Rfd1 {[%clk 00:33:11]} {[%emt 00:01:38]} Qe7 {[%clk 00:27:08]} {[%emt
00:01:19]} 21. Rd2 {[%clk 00:25:57]} {[%emt 00:07:44]} c3 {[%clk 00:18:42]}
{[%emt 00:08:56]} 22. Qxc3 {[%clk 00:17:11]} {[%emt 00:09:16]} Ne4 {[%clk
00:18:57]} {[%emt 00:00:15]} 23. Qd3 {[%clk 00:15:36]} {[%emt 00:02:04]} Rba8
{[%clk 00:15:02]} {[%emt 00:04:27]} 24. Rc2 {[%clk 00:14:23]} {[%emt 00:01:42]}
a4 {[%clk 00:13:27]} {[%emt 00:02:05]} 25. Rd1 {[%clk 00:13:49]} {[%emt
00:01:04]} Rc6 {[%clk 00:09:07]} {[%emt 00:04:51]} 26. Qd7 {[%clk 00:09:46]}
{[%emt 00:04:33]} Qxd7 {[%clk 00:08:31]} {[%emt 00:01:06]} 27. Rxd7 {[%clk
00:10:11]} {[%emt 00:00:04]} Nf6 {[%clk 00:08:52]} {[%emt 00:00:09]} 28. Bxf6
{[%clk 00:10:39]} {[%emt 00:00:03]} gxf6 {[%clk 00:09:17]} {[%emt 00:00:04]} 29.
Kf1 {[%clk 00:10:51]} {[%emt 00:00:19]} c4 {[%clk 00:06:06]} {[%emt 00:03:41]}
30. a3 {[%clk 00:09:00]} {[%emt 00:02:21]} c3 {[%clk 00:02:40]} {[%emt
00:03:55]} 31. bxc3 {[%clk 00:07:21]} {[%emt 00:02:09]} Rac8 {[%clk 00:02:18]}
{[%emt 00:00:52]} 32. Ra7 {[%clk 00:03:36]} {[%emt 00:04:15]} Rxc3 {[%clk
00:02:34]} {[%emt 00:00:15]} 33. Rxc3 {[%clk 00:04:03]} {[%emt 00:00:04]} Rxc3
{[%clk 00:03:00]} {[%emt 00:00:03]} 34. Rxa4 {[%clk 00:04:30]} {[%emt
00:00:03]} Kf7 {[%clk 00:03:13]} {[%emt 00:00:17]} 35. Ke2 {[%clk 00:04:29]}
{[%emt 00:00:31]} Rc2+ {[%clk 00:03:33]} {[%emt 00:00:11]} 36. Kf3 {[%clk
00:04:52]} {[%emt 00:00:06]} Ra2 {[%clk 00:03:42]} {[%emt 00:00:20]} 37. Kg3
{[%clk 00:04:26]} {[%emt 00:00:56]} Kg6 {[%clk 00:03:20]} {[%emt 00:00:52]} 38.
f3 {[%clk 00:02:34]} {[%emt 00:02:21]} Re2 {[%clk 00:02:03]} {[%emt 00:01:48]}
39. e4 {[%clk 00:02:19]} {[%emt 00:00:45]} fxe4 {[%clk 00:01:20]} {[%emt
00:01:13]} 40. Rxe4 {[%clk 00:02:10]} {[%emt 00:00:39]} Ra2 {[%clk 00:01:43]}
{[%emt 00:00:07]} 41. Ra4 {[%clk 00:28:32]} {[%emt 00:04:09]} Kg5 {[%clk
00:26:14]} {[%emt 00:05:57]} 42. Ra8 {[%clk 00:24:58]} {[%emt 00:04:05]} Kg6
{[%clk 00:26:18]} {[%emt 00:00:26]} 43. a4 {[%clk 00:25:01]} {[%emt 00:00:28]}
Kg7 {[%clk 00:24:02]} {[%emt 00:02:46]} 44. a5 {[%clk 00:25:20]} {[%emt
00:00:11]} Ra4 {[%clk 00:24:11]} {[%emt 00:00:20]} 45. a6 {[%clk 00:25:32]}
{[%emt 00:00:18]} Ra2 {[%clk 00:24:26]} {[%emt 00:00:15]} 46. h3 {[%clk
00:23:33]} {[%emt 00:02:29]} Ra4 {[%clk 00:23:27]} {[%emt 00:01:29]} 47. f4
{[%clk 00:23:36]} {[%emt 00:00:27]} Ra2 {[%clk 00:23:09]} {[%emt 00:00:48]} 48.
Kf3 {[%clk 00:23:25]} {[%emt 00:00:41]} Ra4 {[%clk 00:23:21]} {[%emt 00:00:18]}
49. g4 {[%clk 00:21:36]} {[%emt 00:02:19]} Ra3+ {[%clk 00:22:21]} {[%emt
00:01:30]} 50. Ke4 {[%clk 00:20:35]} {[%emt 00:01:31]} Ra4+ {[%clk 00:21:21]}
{[%emt 00:01:30]} 51. Ke3 {[%clk 00:20:00]} {[%emt 00:01:04]} Kf7 {[%clk
00:19:01]} {[%emt 00:02:50]} 52. Kd3 {[%clk 00:15:04]} {[%emt 00:05:26]} Kg7
{[%clk 00:19:20]} {[%emt 00:00:11]} 53. Ke3 {[%clk 00:14:16]} {[%emt 00:01:18]}
Kf7 {[%clk 00:19:44]} {[%emt 00:00:06]} 54. h4 {[%clk 00:14:36]} {[%emt
00:00:11]} h6 {[%clk 00:15:10]} {[%emt 00:05:03]} 55. h5 {[%clk 00:11:19]}
{[%emt 00:03:46]} Kg7 {[%clk 00:14:57]} {[%emt 00:00:44]} 56. Ra7+ {[%clk
00:11:28]} {[%emt 00:00:21]} Kg8 {[%clk 00:15:02]} {[%emt 00:00:24]} 57. Kd3
{[%clk 00:11:13]} {[%emt 00:00:46]} e5 {[%clk 00:07:39]} {[%emt 00:07:53]} 58.
fxe5 {[%clk 00:11:30]} {[%emt 00:00:13]} fxe5 {[%clk 00:08:08]} {[%emt
00:00:01]} 59. Ra8+ {[%clk 00:10:38]} {[%emt 00:01:22]} Kg7 {[%clk 00:08:27]}
{[%emt 00:00:10]} 60. Ke3 {[%clk 00:07:34]} {[%emt 00:03:35]} Kh7 {[%clk
00:08:31]} {[%emt 00:00:26]} 61. Kf3 {[%clk 00:07:46]} {[%emt 00:00:18]} Kg7
{[%clk 00:08:42]} {[%emt 00:00:18]} 62. Kg3 {[%clk 00:06:38]} {[%emt 00:01:38]}
Ra3+ {[%clk 00:08:34]} {[%emt 00:00:38]} 63. Kh4 {[%clk 00:06:06]} {[%emt
00:01:02]} Ra4 {[%clk 00:07:56]} {[%emt 00:01:09]} 64. a7 {[%clk 00:05:01]}
{[%emt 00:01:35]} Ra3 {[%clk 00:06:20]} {[%emt 00:02:06]} 65. g5 {[%clk
00:04:58]} {[%emt 00:00:33]} Ra4+ {[%clk 00:06:44]} {[%emt 00:00:05]} 66. Kh3
{[%clk 00:04:59]} {[%emt 00:00:29]} hxg5 {[%clk 00:06:58]} {[%emt 00:00:16]} 67.
h6+ {[%clk 00:05:23]} {[%emt 00:00:07]} Kh7 {[%clk 00:07:20]} {[%emt 00:00:08]}
68. Kg3 {[%clk 00:05:47]} {[%emt 00:00:06]} g4 {[%clk 00:07:17]} {[%emt
00:00:33]} 69. Kh4 {[%clk 00:06:09]} {[%emt 00:00:08]} g3+ {[%clk 00:07:14]}
{[%emt 00:00:33]} 70. Kxg3 {[%clk 00:06:35]} {[%emt 00:00:04]} e4 {[%clk
00:07:15]} {[%emt 00:00:29]} 71. Kf4 {[%clk 00:07:02]} {[%emt 00:00:03]} e3+
{[%clk 00:07:37]} {[%emt 00:00:09]} 72. Kxe3 {[%clk 00:07:28]} {[%emt
00:00:04]} Ra3+ {[%clk 00:08:01]} {[%emt 00:00:05]} 73. Kd4 {[%clk 00:07:52]}
{[%emt 00:00:07]} Ra4+ {[%clk 00:08:05]} {[%emt 00:00:27]} 74. Ke5 {[%clk
00:06:50]} {[%emt 00:01:31]} Ra1 {[%clk 00:07:38]} {[%emt 00:00:56]} 75. Kd4
{[%clk 00:07:16]} {[%emt 00:00:05]} Ra4+ {[%clk 00:08:03]} {[%emt 00:00:05]} 76.
Kc5 {[%clk 00:07:29]} {[%emt 00:00:16]} Ra1 {[%clk 00:08:27]} {[%emt 00:00:06]}
77. Rc8 {[%clk 00:07:19]} {[%emt 00:00:40]} Rxa7 {[%clk 00:08:44]} {[%emt
00:00:13]} 78. Rc6 {[%clk 00:07:36]} {[%emt 00:00:13]} Ra5+ {[%clk 00:09:03]}
{[%emt 00:00:11]} 79. Kd4 {[%clk 00:07:59]} {[%emt 00:00:06]} Rh5 {[%clk
00:09:28]} {[%emt 00:00:05]} 80. Ke4 {[%clk 00:08:27]} {[%emt 00:00:03]} Rxh6
{[%clk 00:09:53]} {[%emt 00:00:05]} 81. Rxh6+ {[%clk 00:08:56]} {[%emt
00:00:01]} Kxh6 {[%emt 00:00:11]} 1/2-1/2